fUST/lending_fUST_20240310
["ID","MTS","AMOUNT","RATE_DAILY","PERIOD"]
[318095669,1710065443327,-15579.67,0.00022798,2]
[318095670,1710065443337,-15579.67,0.00022798,2]
[318095671,1710065443346,-15579.67,0.00022798,2]
[318095672,1710065443357,-15579.67,0.00022798,2]
[318095673,1710065443367,-15579.90342061,0.00022798,2]
[318095674,1710065443380,-542.77,0.00022799,2]
[318095675,1710065443391,-542.77,0.00022799,2]
[318095676,1710065443401,-542.77,0.00022799,2]
[318095677,1710065443411,-542.77,0.00022799,2]
[318095678,1710065443423,-542.77,0.00022799,2]
[318095679,1710065443433,-308.46073928,0.00022799,2]
[318095680,1710065443452,-234.30926072,0.00022799,2]
[318095681,1710065443463,-542.77,0.00022799,2]
[318095682,1710065443473,-542.77,0.00022799,2]
[318095683,1710065443484,-542.88645832,0.00022799,2]
[318095684,1710065443495,-500.0,0.00022799,2]
[318095685,1710065443506,-645.09447627,0.00022799,2]
[318095686,1710065443518,-581.67374183,0.00022799,2]
[318095687,1710065443529,-942.74,0.00022799,2]
[318095688,1710065443541,-942.74,0.00022799,2]
[318095689,1710065443552,-942.74,0.00022799,2]
[318095690,1710065443564,-942.74,0.00022799,2]
[318095691,1710065443576,-942.74,0.00022799,2]
[318095692,1710065443587,-942.74,0.00022799,2]
[318095693,1710065443599,-942.74,0.00022799,2]
[318095694,1710065443611,-942.74,0.00022799,2]
[318095695,1710065443622,-942.91393394,0.00022799,2]
[318095696,1710065443632,-500.0,0.00022799,2]
[318095697,1710065443641,-142808.7427239,0.000228,7]
[318095707,1710065446288,-293.37469755,0.00022728,2]
[318095708,1710065446299,-175631.83886066,0.000228,7]
[318095859,1710066632289,-280.54842491,0.00020699,2]
[318095861,1710066632299,-2020.56022276,0.00020699,2]
[318095863,1710066632309,-303.00903161,0.000207,2]
[318095865,1710066632318,-1058.7775951,0.00021584,2]
[318095867,1710066632328,-1984.4959834,0.00021649,2]
[318095869,1710066632337,-4013.19535904,0.00022,2]
[318095871,1710066632347,-539.0,0.00022,2]
[318095873,1710066632356,-270.0,0.00022,2]
[318095875,1710066632365,-270.0,0.00022192,2]
[318095877,1710066632375,-170.68100316,0.00022571,2]
[318095879,1710066632384,-200.0,0.000226,2]
[318095881,1710066632393,-276.49720145,0.000227,2]
[318095883,1710066632405,-1723.50279855,0.000227,2]
[318095885,1710066632414,-2000.0,0.0002271,2]
[318095887,1710066632423,-2000.0,0.0002272,2]
[318095889,1710066632436,-553.60973754,0.00022736,2]
[318095992,1710066638221,-266.31672317,0.00022736,2]
[318095993,1710066638231,-129.12327683,0.00022736,2]
[318095994,1710066638243,-544.084337,0.00022736,2]
[318095995,1710066638253,-208.45108588,0.00022736,2]
[318095996,1710066638262,-3310.58058486,0.00022736,2]
[318095997,1710066638271,-165.52902924,0.00022736,2]
[318095998,1710066638280,-1000.0,0.00022736,7]
[318095999,1710066638289,-1000.0,0.00022736,7]
[318096000,1710066638298,-1000.0,0.00022736,7]
[318096001,1710066638307,-1000.0,0.00022736,7]
[318096002,1710066638317,-1000.0,0.00022736,7]
[318096003,1710066638326,-341.10732534,0.00022736,2]
[318096004,1710066638335,-1000.0,0.00022736,7]
[318096005,1710066638344,-1000.0,0.00022736,7]
[318096006,1710066638353,-1000.0,0.00022736,7]
[318096007,1710066638362,-1000.0,0.00022736,7]
[318096008,1710066638372,-1000.0,0.00022736,7]
[318096009,1710066638381,-1000.0,0.00022736,7]
[318096010,1710066638390,-336.67303706,0.00022736,2]
[318096012,1710066638400,-500.0,0.00022738,2]
[318096013,1710066638409,-500.0,0.00022739,2]
[318096014,1710066638419,-500.0,0.00022739,2]
[318096015,1710066638428,-500.0,0.00022739,2]
[318096016,1710066638438,-500.0,0.00022739,2]
[318096017,1710066638447,-500.0,0.00022739,2]
[318096019,1710066638457,-500.0,0.00022739,2]
[318096021,1710066638466,-500.0,0.00022739,2]
[318096023,1710066638476,-500.0,0.00022739,2]
[318096025,1710066638486,-500.0,0.00022739,2]
[318096026,1710066638495,-500.0,0.00022739,2]
[318096027,1710066638505,-500.0,0.00022739,2]
[318096029,1710066638515,-500.0,0.00022739,2]
[318096030,1710066638524,-500.0,0.00022739,2]
[318096031,1710066638534,-500.0,0.00022739,2]
[318096033,1710066638543,-500.0,0.00022739,2]
[318096035,1710066638553,-500.0,0.00022739,2]
[318096037,1710066638562,-500.0,0.00022739,2]
[318096038,1710066638572,-500.0,0.00022739,2]
[318096039,1710066638582,-574.03,0.00022739,2]
[318096040,1710066638591,-500.0,0.00022739,2]
[318096041,1710066638600,-1568.36,0.00022739,2]
[318096042,1710066638611,-1568.36,0.00022739,2]
[318096043,1710066638620,-1568.36,0.00022739,2]
[318096044,1710066638630,-500.0,0.00022739,2]
[318096045,1710066638638,-500.0,0.00022739,2]
[318096046,1710066638648,-163.5293896,0.00022739,2]
[318096047,1710066638657,-500.0,0.00022739,2]
[318096048,1710066638667,-500.0,0.00022739,2]
[318096049,1710066638679,-500.0,0.00022739,2]
[318096050,1710066638692,-343.98499668,0.00022739,2]
[318096051,1710066638704,-500.0,0.00022739,2]
[318096052,1710066638716,-500.0,0.00022739,2]
[318096053,1710066638728,-500.0,0.00022739,2]
[318096054,1710066638740,-586.40341612,0.00022739,2]
[318096055,1710066638751,-575.99,0.00022739,2]
[318096056,1710066638762,-575.99,0.00022739,2]
[318096057,1710066638773,-575.99,0.00022739,2]
[318096059,1710066638783,-500.0,0.00022739,2]
[318096060,1710066638795,-500.0,0.00022739,2]
[318096061,1710066638806,-918.84,0.00022739,2]
[318096062,1710066638817,-918.84,0.00022739,2]
[318096064,1710066638828,-635.41481183,0.00022739,2]
[318096066,1710066638844,-283.42518817,0.00022739,2]
[318096067,1710066638855,-135.34413397,0.00022739,2]
[318096113,1710066646387,-364.65586603,0.00022739,2]
[318096114,1710066646397,-500.0,0.00022739,2]
[318096115,1710066646408,-642.2861604,0.00022739,2]
[318096116,1710066646418,-500.0,0.00022739,2]
[318096117,1710066646429,-500.0,0.00022739,2]
[318096118,1710066646439,-500.0,0.00022739,2]
[318096119,1710066646569,-2084.82,0.00022739,2]
[318096120,1710066646580,-2084.82,0.00022739,2]
[318096121,1710066646589,-500.0,0.00022739,2]
[318096122,1710066646599,-500.0,0.00022739,2]
[318096123,1710066646609,-500.0,0.00022739,2]
[318096124,1710066646618,-311.72289608,0.00022739,2]
[318096125,1710066646627,-500.0,0.00022739,2]
[318096126,1710066646637,-500.0,0.00022739,2]
[318096127,1710066646647,-500.0,0.00022739,2]
[318096128,1710066646656,-500.0,0.00022739,2]
[318096129,1710066646665,-500.0,0.00022739,2]
[318096130,1710066646674,-500.0,0.00022739,2]
[318096131,1710066646683,-500.0,0.00022739,2]
[318096132,1710066646692,-2017.4,0.00022739,2]
[318096133,1710066646704,-2017.4,0.00022739,2]
[318096134,1710066646713,-500.0,0.00022739,2]
[318096135,1710066646722,-500.0,0.00022739,2]
[318096136,1710066646731,-500.0,0.00022739,2]
[318096137,1710066646740,-500.0,0.00022739,2]
[318096138,1710066646748,-500.0,0.00022739,2]
[318096139,1710066646757,-501.27780559,0.00022739,2]
[318096140,1710066646767,-2776.68,0.00022739,2]
[318096141,1710066646776,-2776.68,0.00022739,2]
[318096142,1710066646785,-2776.68,0.00022739,2]
[318096143,1710066646795,-500.0,0.00022739,2]
[318096144,1710066646804,-500.0,0.00022739,2]
[318096145,1710066646814,-500.0,0.00022739,2]
[318096146,1710066646823,-1372.31,0.00022739,2]
[318096147,1710066646832,-1372.31,0.00022739,2]
[318096148,1710066646841,-1372.31,0.00022739,2]
[318096149,1710066646851,-500.0,0.00022741,2]
[318096150,1710066646860,-500.0,0.00022786,2]
[318096151,1710066646870,-575.99,0.00022793,2]
[318096152,1710066646879,-918.84,0.00022793,2]
[318096153,1710066646888,-500.0,0.00022793,2]
[318096154,1710066646898,-500.0,0.00022793,2]
[318096155,1710066646908,-500.0,0.00022793,2]
[318096156,1710066646917,-500.0,0.00022793,2]
[318096157,1710066646927,-2776.68,0.00022793,2]
[318096158,1710066646936,-500.0,0.00022793,2]
[318096159,1710066646946,-1372.31,0.00022793,2]
[318096160,1710066646956,-500.0,0.00022794,2]
[318096161,1710066646965,-500.0,0.00022794,2]
[318096162,1710066646975,-500.0,0.00022794,2]
[318096163,1710066646985,-500.0,0.00022794,2]
[318096164,1710066646995,-500.0,0.00022794,2]
[318096165,1710066647004,-500.0,0.00022794,2]
[318096166,1710066647013,-620.900445,0.00022794,2]
[318096167,1710066647022,-336.26263315,0.00022794,2]
[318096168,1710066647032,-500.0,0.00022794,2]
[318096169,1710066647042,-5884.04,0.00022794,2]
[318096170,1710066647053,-500.0,0.00022794,2]
[318096171,1710066647067,-500.0,0.00022794,2]
[318096172,1710066647076,-500.0,0.00022794,2]
[318096173,1710066647088,-500.0,0.00022794,2]
[318096174,1710066647098,-500.0,0.00022794,2]
[318096175,1710066647107,-575.99,0.00022794,2]
[318096176,1710066647116,-575.99,0.00022794,2]
[318096177,1710066647126,-918.84,0.00022794,2]
[318096178,1710066647136,-918.84,0.00022794,2]
[318096179,1710066647145,-500.0,0.00022794,2]
[318096180,1710066647155,-500.0,0.00022794,2]
[318096181,1710066647164,-2084.82,0.00022794,2]
[318096182,1710066647174,-1998.1748052,0.00022794,2]
[318096183,1710066647187,-86.6451948,0.00022794,2]
[318096184,1710066647197,-500.0,0.00022794,2]
[318096185,1710066647206,-500.0,0.00022794,2]
[318096186,1710066647217,-500.0,0.00022794,2]
[318096187,1710066647227,-500.0,0.00022794,2]
[318096188,1710066647237,-500.84821059,0.00022794,2]
[318096189,1710066647247,-500.0,0.00022794,2]
[318096190,1710066647257,-500.0,0.00022794,2]
[318096191,1710066647267,-564.43146365,0.00022794,2]
[318096192,1710066647276,-500.0,0.00022794,2]
[318096193,1710066647286,-500.0,0.00022794,2]
[318096194,1710066647296,-500.0,0.00022794,2]
[318096195,1710066647306,-500.0,0.00022794,2]
[318096196,1710066647315,-500.0,0.00022794,2]
[318096197,1710066647324,-500.0,0.00022794,2]
[318096198,1710066647333,-500.0,0.00022794,2]
[318096199,1710066647343,-500.0,0.00022794,2]
[318096200,1710066647352,-1848.07513096,0.00022794,2]
[318096605,1710067832495,-280.54842491,0.0002066,2]
[318096607,1710067832504,-336.69909941,0.00020661,2]
[318096609,1710067832514,-254.94845312,0.00020694,2]
[318096611,1710067832523,-2.72729645,0.00022,2]
[318096621,1710067832622,-220.27270355,0.00022,2]
[318096625,1710067832632,-223.0,0.00022192,2]
[318096628,1710067832641,-200.0,0.000223,2]
[318096631,1710067832651,-1354.509409,0.000227,2]
[318096634,1710067832661,-1000.0,0.00022736,7]
[318096637,1710067832670,-654.04396607,0.00022736,2]
[318096640,1710067832680,-196.62530245,0.00022736,2]
[318096643,1710067832689,-1000.0,0.00022736,7]
[318096646,1710067832698,-193.43096831,0.00022736,2]
[318096649,1710067832708,-500.0,0.00022739,2]
[318096652,1710067832717,-500.0,0.00022739,2]
[318096654,1710067832727,-500.0,0.00022739,2]
[318096658,1710067832737,-155.38424628,0.00022739,2]
[318096660,1710067832746,-278.18172989,0.00022739,2]
[318096662,1710067832758,-221.81827011,0.00022739,2]
[318096665,1710067832767,-501.36042084,0.00022739,2]
[318096667,1710067832777,-500.0,0.00022739,2]
[318096670,1710067832786,-500.0,0.00022739,2]
[318096673,1710067832794,-500.0,0.00022739,2]
[318096676,1710067832803,-500.0,0.00022739,2]
[318096679,1710067832813,-500.0,0.00022739,2]
[318096682,1710067832821,-500.0,0.00022739,2]
[318096685,1710067832830,-500.0,0.00022739,2]
[318096688,1710067832839,-463.47587121,0.00022739,2]
[318096691,1710067832848,-500.0,0.00022739,2]
[318096694,1710067832857,-500.0,0.00022739,2]
[318096696,1710067832866,-500.0,0.00022739,2]
[318096699,1710067832874,-500.0,0.00022739,2]
[318096702,1710067832884,-500.0,0.00022739,2]
[318096704,1710067832893,-500.0,0.00022739,2]
[318096706,1710067832902,-500.0,0.00022739,2]
[318096708,1710067832911,-500.0,0.00022739,2]
[318096710,1710067832920,-3775.78667234,0.00022739,2]
[318096873,1710067839072,-2512.23332766,0.00022739,2]
[318096875,1710067839082,-321.01301817,0.00022739,2]
[318096877,1710067839091,-500.0,0.00022739,2]
[318096879,1710067839100,-250.94705874,0.00022739,2]
[318096881,1710067839109,-300.05000001,0.00022739,2]
[318096883,1710067839117,-500.0,0.00022739,2]
[318096884,1710067839127,-500.0,0.00022739,2]
[318096886,1710067839136,-501.18666575,0.00022739,2]
[318096889,1710067839145,-2988.56,0.00022739,2]
[318096890,1710067839154,-500.0,0.00022739,2]
[318096893,1710067839164,-500.0,0.00022739,2]
[318096895,1710067839173,-500.0,0.00022739,2]
[318096897,1710067839183,-500.0,0.00022739,2]
[318096898,1710067839193,-540.52,0.00022739,2]
[318096901,1710067839203,-758.41,0.00022739,2]
[318096903,1710067839214,-500.0,0.00022739,2]
[318096905,1710067839224,-500.0,0.00022739,2]
[318096907,1710067839234,-500.0,0.00022739,2]
[318096909,1710067839243,-500.0,0.00022739,2]
[318096911,1710067839252,-500.0,0.00022739,2]
[318096913,1710067839261,-1840.64,0.00022739,2]
[318096915,1710067839270,-500.0,0.00022739,2]
[318096917,1710067839278,-500.0,0.00022739,2]
[318096919,1710067839287,-500.0,0.00022739,2]
[318096921,1710067839296,-500.0,0.00022739,2]
[318096923,1710067839305,-500.0,0.00022739,2]
[318096925,1710067839315,-500.0,0.00022739,2]
[318096927,1710067839324,-500.0,0.00022739,2]
[318096929,1710067839333,-500.0,0.00022739,2]
[318096931,1710067839342,-500.0,0.00022739,2]
[318096933,1710067839351,-1888.43,0.00022739,2]
[318096935,1710067839360,-501.23694101,0.00022739,2]
[318096937,1710067839373,-500.0,0.00022739,2]
[318096939,1710067839382,-500.0,0.00022739,2]
[318096941,1710067839391,-528.45,0.00022739,2]
[318096943,1710067839401,-500.0,0.00022739,2]
[318096945,1710067839410,-500.0,0.00022739,2]
[318096947,1710067839419,-500.0,0.00022739,2]
[318096949,1710067839429,-1981.14,0.00022739,2]
[318096951,1710067839438,-412.20255235,0.00022739,2]
[318096953,1710067839447,-500.0,0.00022793,2]
[318096955,1710067839457,-500.0,0.00022793,2]
[318096957,1710067839469,-500.0,0.00022793,2]
[318096959,1710067839480,-500.0,0.00022793,2]
[318096961,1710067839489,-500.0,0.00022793,2]
[318096963,1710067839499,-500.0,0.00022793,2]
[318096965,1710067839508,-500.0,0.00022793,2]
[318096967,1710067839518,-425.73260742,0.00022793,2]
[318096969,1710067839526,-500.0,0.00022793,2]
[318096971,1710067839537,-6288.02,0.00022793,2]
[318096973,1710067839545,-500.0,0.00022793,2]
[318096975,1710067839555,-2988.56,0.00022793,2]
[318096977,1710067839564,-500.0,0.00022793,2]
[318096979,1710067839574,-500.0,0.00022793,2]
[318096981,1710067839585,-540.52,0.00022793,2]
[318096983,1710067839594,-758.41,0.00022793,2]
[318096985,1710067839603,-500.0,0.00022793,2]
[318096987,1710067839612,-208.50314655,0.00022793,2]
[318096989,1710067839621,-500.0,0.00022793,2]
[318096991,1710067839630,-500.0,0.00022793,2]
[318096993,1710067839639,-1840.64,0.00022793,2]
[318096995,1710067839647,-500.0,0.00022793,2]
[318096997,1710067839656,-500.0,0.00022793,2]
[318096999,1710067839666,-500.0,0.00022793,2]
[318097001,1710067839674,-500.0,0.00022793,2]
[318097003,1710067839685,-500.0,0.00022793,2]
[318097005,1710067839694,-1888.43,0.00022793,2]
[318097007,1710067839703,-547.28,0.00022793,2]
[318097009,1710067839713,-500.0,0.00022793,2]
[318097011,1710067839722,-528.45,0.00022793,2]
[318097013,1710067839730,-500.0,0.00022793,2]
[318097015,1710067839739,-500.0,0.00022793,2]
[318097016,1710067839748,-1981.14,0.00022793,2]
[318097019,1710067839757,-990.05665748,0.00022794,2]
[318097021,1710067839767,-500.0,0.00022794,2]
[318097022,1710067839775,-251.61504562,0.00022794,2]
[318097025,1710067839785,-500.0,0.00022794,2]
[318097026,1710067839795,-500.0,0.00022794,2]
[318097028,1710067839804,-500.0,0.00022794,2]
[318097030,1710067839813,-500.0,0.00022794,2]
[318097032,1710067839822,-500.0,0.00022794,2]
[318097034,1710067839831,-500.0,0.00022794,2]
[318097036,1710067839841,-500.0,0.00022794,2]
[318097038,1710067839849,-6288.02,0.00022794,2]
[318097040,1710067839858,-500.0,0.00022794,2]
[318097042,1710067839868,-2988.56,0.00022794,2]
[318097045,1710067839877,-500.0,0.00022794,2]
[318097047,1710067839886,-500.0,0.00022794,2]
[318097049,1710067839895,-540.52,0.00022794,2]
[318097051,1710067839905,-758.41,0.00022794,2]
[318097053,1710067839914,-500.0,0.00022794,2]
[318097055,1710067839924,-500.0,0.00022794,2]
[318097058,1710067839934,-500.0,0.00022794,2]
[318097060,1710067839944,-1840.64,0.00022794,2]
[318097062,1710067839953,-500.0,0.00022794,2]
[318097064,1710067839962,-500.0,0.00022794,2]
[318097066,1710067839972,-500.0,0.00022794,2]
[318097068,1710067839982,-500.0,0.00022794,2]
[318097070,1710067839991,-1888.43,0.00022794,2]
[318097072,1710067840000,-500.0,0.00022794,2]
[318097074,1710067840009,-528.45,0.00022794,2]
[318097076,1710067840018,-500.0,0.00022794,2]
[318097078,1710067840027,-500.0,0.00022794,2]
[318097080,1710067840036,-1981.14,0.00022794,2]
[318097082,1710067840046,-34698.05726704,0.00022795,2]
[318097084,1710067840054,-500.0,0.00022797,2]
[318097086,1710067840063,-500.0,0.00022797,2]
[318097088,1710067840072,-2988.56,0.00022797,2]
[318097090,1710067840081,-500.0,0.00022797,2]
[318097091,1710067840091,-540.52,0.00022797,2]
[318097092,1710067840100,-500.0,0.00022797,2]
[318097093,1710067840109,-500.0,0.00022797,2]
[318097094,1710067840118,-500.0,0.00022797,2]
[318097095,1710067840127,-1840.64,0.00022797,2]
[318097096,1710067840136,-500.0,0.00022797,2]
[318097097,1710067840144,-1888.43,0.00022797,2]
[318097098,1710067840154,-500.0,0.00022797,2]
[318097099,1710067840163,-528.45,0.00022797,2]
[318097100,1710067840172,-500.0,0.00022797,2]
[318097101,1710067840181,-500.0,0.00022797,2]
[318097102,1710067840190,-1981.14,0.00022797,2]
[318097103,1710067840198,-500.0,0.00022798,2]
[318097104,1710067840207,-500.0,0.00022798,2]
[318097105,1710067840216,-500.0,0.00022798,2]
[318097106,1710067840226,-500.0,0.00022798,2]
[318097107,1710067840235,-500.0,0.00022798,2]
[318097108,1710067840243,-500.0,0.00022798,2]
[318097109,1710067840252,-500.0,0.00022798,2]
[318097110,1710067840261,-549.7691616,0.00022798,2]
[318097111,1710067840270,-6288.02,0.00022798,2]
[318097112,1710067840278,-6288.02,0.00022798,2]
[318097113,1710067840287,-500.0,0.00022798,2]
[318097114,1710067840296,-2988.56,0.00022798,2]
[318097115,1710067840305,-500.0,0.00022798,2]
[318097116,1710067840314,-282.93994122,0.00022798,2]
[318097117,1710067840323,-540.52,0.00022798,2]
[318097119,1710067840332,-758.41,0.00022798,2]
[318097120,1710067840341,-758.41,0.00022798,2]
[318097122,1710067840351,-500.0,0.00022798,2]
[318097124,1710067840360,-500.0,0.00022798,2]
[318097126,1710067840370,-500.0,0.00022798,2]
[318097128,1710067840379,-1840.64,0.00022798,2]
[318097131,1710067840392,-500.0,0.00022798,2]
[318097132,1710067840401,-500.0,0.00022798,2]
[318097134,1710067840410,-500.0,0.00022798,2]
[318097137,1710067840420,-500.0,0.00022798,2]
[318097138,1710067840429,-1888.43,0.00022798,2]
[318097140,1710067840438,-500.0,0.00022798,2]
[318097143,1710067840448,-528.45,0.00022798,2]
[318097145,1710067840459,-500.0,0.00022798,2]
[318097147,1710067840469,-1981.14,0.00022798,2]
[318097149,1710067840482,-270.42095109,0.00022799,2]
[318097150,1710067840492,-500.0,0.00022799,2]
[318097152,1710067840502,-247.18045082,0.00022799,2]
[318097154,1710067840512,-500.0,0.00022799,2]
[318097157,1710067840523,-500.0,0.00022799,2]
[318097158,1710067840534,-500.0,0.00022799,2]
[318097161,1710067840545,-505.13052132,0.00022799,2]
[318097163,1710067840555,-500.0,0.00022799,2]
[318097165,1710067840567,-500.0,0.00022799,2]
[318097167,1710067840577,-6288.02,0.00022799,2]
[318097169,1710067840587,-500.0,0.00022799,2]
[318097171,1710067840598,-500.0,0.00022799,2]
[318097173,1710067840608,-2988.56,0.00022799,2]
[318097175,1710067840618,-154.94148642,0.00022799,2]
[318097177,1710067840628,-540.52,0.00022799,2]
[318097178,1710067840638,-758.41,0.00022799,2]
[318097180,1710067840647,-500.0,0.00022799,2]
[318097182,1710067840657,-500.0,0.00022799,2]
[318097184,1710067840667,-500.0,0.00022799,2]
[318097186,1710067840677,-1840.64,0.00022799,2]
[318097189,1710067840687,-648.24,0.00022799,2]
[318097191,1710067840697,-500.0,0.00022799,2]
[318097192,1710067840706,-500.0,0.00022799,2]
[318097203,1710067840795,-500.0,0.00022799,2]
[318097205,1710067840805,-500.0,0.00022799,2]
[318097207,1710067840815,-500.0,0.00022799,2]
[318097209,1710067840824,-1888.43,0.00022799,2]
[318097212,1710067840834,-500.0,0.00022799,2]
[318097214,1710067840846,-528.45,0.00022799,2]
[318097216,1710067840855,-500.0,0.00022799,2]
[318097218,1710067840864,-1981.14,0.00022799,2]
[318097220,1710067840873,-500.0,0.00022799,2]
[318097222,1710067840883,-34651.91016089,0.000228,7]
[318097224,1710067840892,-10000.0,0.000228,14]
[318097226,1710067840901,-10000.0,0.000228,20]
[318097228,1710067840911,-502.9227895,0.000228,2]
[318097230,1710067840920,-591.77641745,0.00022899,2]
[318097232,1710067840929,-2000.0,0.000229,2]
[318097234,1710067840939,-574.43021192,0.00022907,2]
[318097236,1710067840948,-2000.0,0.0002291,2]
[318097238,1710067840958,-319.065386,0.00022913,2]
[318097240,1710067840967,-474.947198,0.00022913,2]
[318097242,1710067840976,-2000.0,0.0002292,2]
[318097244,1710067840986,-2988.56,0.00022929,2]
[318097245,1710067840995,-540.52,0.00022929,2]
[318097247,1710067841004,-500.0,0.00022929,2]
[318097249,1710067841014,-1888.43,0.00022929,2]
[318097251,1710067841023,-500.0,0.00022929,2]
[318097254,1710067841032,-528.45,0.00022929,2]
[318097255,1710067841041,-1981.14,0.00022929,2]
[318097257,1710067841051,-2000.0,0.0002293,2]
[318097260,1710067841060,-2000.0,0.0002294,2]
[318097261,1710067841069,-2000.0,0.0002295,2]
[318097263,1710067841079,-173.322455,0.00022952,2]
[318097266,1710067841088,-239.437806,0.00022952,2]
[318097268,1710067841097,-459.948493,0.00022952,2]
[318097270,1710067841106,-500.0,0.00022956,2]
[318097272,1710067841116,-500.0,0.00022956,2]
[318097274,1710067841125,-1840.64,0.00022956,2]
[318097276,1710067841135,-500.0,0.00022956,2]
[318097278,1710067841144,-6288.02,0.00022957,2]
[318097280,1710067841153,-758.41,0.00022959,2]
[318097281,1710067841162,-2000.0,0.0002296,2]
[318097283,1710067841171,-2000.0,0.0002297,2]
[318097285,1710067841180,-155.22441601,0.00022975,2]
[318097287,1710067841190,-160.0,0.00022975,3]
[318097289,1710067841198,-450.71,0.00022979,2]
[318097291,1710067841207,-500.0,0.00022979,2]
[318097293,1710067841216,-500.0,0.00022979,2]
[318097295,1710067841226,-500.0,0.00022979,2]
[318097297,1710067841235,-500.0,0.00022979,2]
[318097299,1710067841245,-2000.0,0.0002298,2]
[318097301,1710067841254,-2000.0,0.0002299,2]
[318097303,1710067841263,-500.0,0.00022995,2]
[318097306,1710067841272,-502.23127857,0.00022995,2]
[318097307,1710067841281,-1840.64,0.00022995,2]
[318097309,1710067841290,-500.0,0.00022995,2]
[318097312,1710067841300,-500.0,0.00022996,2]
[318097314,1710067841309,-6288.02,0.00022996,2]
[318097316,1710067841318,-6288.02,0.00022996,2]
[318097318,1710067841327,-2988.56,0.00022996,2]
[318097319,1710067841336,-2988.56,0.00022996,2]
[318097321,1710067841345,-540.52,0.00022996,2]
[318097323,1710067841354,-540.52,0.00022996,2]
[318097326,1710067841363,-758.41,0.00022996,2]
[318097328,1710067841378,-758.41,0.00022996,2]
[318097330,1710067841387,-500.0,0.00022996,2]
[318097332,1710067841399,-1840.64,0.00022996,2]
[318097334,1710067841408,-500.0,0.00022996,2]
[318097335,1710067841419,-500.0,0.00022996,2]
[318097338,1710067841429,-1888.43,0.00022996,2]
[318097340,1710067841438,-1888.43,0.00022996,2]
[318097342,1710067841447,-500.0,0.00022996,2]
[318097344,1710067841457,-451.54,0.00022996,2]
[318097345,1710067841466,-528.45,0.00022996,2]
[318097347,1710067841476,-528.45,0.00022996,2]
[318097349,1710067841485,-500.0,0.00022996,2]
[318097351,1710067841495,-1981.14,0.00022996,2]
[318097354,1710067841504,-1981.14,0.00022996,2]
[318097356,1710067841513,-500.0,0.00022997,2]
[318097358,1710067841523,-500.0,0.00022997,2]
[318097359,1710067841533,-6288.02,0.00022997,2]
[318097361,1710067841546,-6288.02,0.00022997,2]
[318097363,1710067841557,-2988.56,0.00022997,2]
[318097366,1710067841568,-2988.56,0.00022997,2]
[318097368,1710067841579,-540.52,0.00022997,2]
[318097370,1710067841590,-540.52,0.00022997,2]
[318097372,1710067841600,-758.41,0.00022997,2]
[318097374,1710067841611,-758.41,0.00022997,2]
[318097376,1710067841620,-1840.64,0.00022997,2]
[318097378,1710067841630,-1840.64,0.00022997,2]
[318097379,1710067841638,-1840.64,0.00022997,2]
[318097381,1710067841648,-500.0,0.00022997,2]